bitfinex-derivatives/quotes_BTCF0:USTF0_20251216
["timestamp","ask_amount","ask_price","bid_price","bid_amount"]
[1765884137381,0.18427,87046.0,87045.0,0.24669]
[1765884138372,0.18527,87046.0,87045.0,0.24669]
[1765884139975,0.18427,87046.0,87045.0,0.24669]
[1765884140271,0.21284491,87046.0,87045.0,0.24669]
[1765884141480,0.02857491,87046.0,87045.0,0.24669]
[1765884141669,0.00017234,87054.0,87053.0,0.19124]
[1765884141973,0.02774376,87054.0,87053.0,0.2027297]
[1765884142574,0.00017234,87054.0,87053.0,0.2027297]
[1765884144681,0.00017234,87054.0,87053.0,0.2037297]
[1765884145185,0.00017234,87054.0,87053.0,0.2047297]
[1765884146383,0.00017234,87054.0,87053.0,0.2037297]
[1765884146777,0.71892,87059.0,87058.0,0.2027291]
[1765884147381,0.7304089,87059.0,87058.0,0.2027291]
[1765884147884,0.7304089,87059.0,87058.0,0.2047291]
[1765884148074,0.0114889,87059.0,87058.0,0.2057291]
[1765884149085,0.18444234,87067.0,87066.0,0.19124]
[1765884149275,0.22318524,87067.0,87066.0,0.19124]
[1765884150683,0.22318524,87067.0,87066.0,0.19224]
[1765884152283,0.22318524,87067.0,87066.0,0.001]
[1765884153481,0.1962889,87059.0,87058.0,0.18345234]
[1765884153682,0.5843439,87059.0,87058.0,0.18345234]
[1765884154879,0.5853439,87059.0,87058.0,0.18345234]
[1765884155390,0.5853439,87059.0,87058.0,0.00017234]
[1765884156180,0.5853439,87059.0,87058.0,0.08888234]
[1765884156688,0.5853439,87059.0,87058.0,0.17703234]
[1765884160484,0.5843439,87059.0,87058.0,0.17703234]
[1765884160680,0.5853439,87059.0,87058.0,0.17703234]
[1765884162595,0.5843439,87059.0,87058.0,0.17703234]
[1765884164390,0.572855,87059.0,87058.0,0.17703234]
[1765884165286,0.388055,87059.0,87058.0,0.17703234]
[1765884165688,0.027255,87059.0,87058.0,0.17703234]
[1765884165993,0.71876,87061.0,87060.0,0.23177]
[1765884166203,0.74604411,87061.0,87060.0,0.23177]
[1765884166998,0.85090281,87061.0,87060.0,0.23177]
[1765884167300,0.85090281,87061.0,87060.0,0.23377]
[1765884167702,0.94473281,87061.0,87060.0,0.23377]
[1765884168791,0.94473281,87061.0,87060.0,0.23577]
[1765884169289,0.94473281,87061.0,87060.0,0.23277]
[1765884169489,0.94473281,87061.0,87060.0,0.23377]
[1765884172803,0.93324411,87061.0,87060.0,0.23377]
[1765884173594,0.93324411,87061.0,87060.0,0.2452588]
[1765884174106,0.94473281,87061.0,87060.0,0.2452588]
[1765884174911,0.94473281,87061.0,87060.0,0.23377]
[1765884175399,0.9174487,87061.0,87060.0,0.23377]
[1765884175605,0.71876,87061.0,87060.0,0.23377]
[1765884176707,0.09354234,87067.0,87066.0,0.17686]
[1765884176895,0.12083437,87067.0,87066.0,0.17686]
[1765884177096,0.09354234,87067.0,87066.0,0.17686]
[1765884177395,0.18737234,87067.0,87066.0,0.17686]
[1765884177601,0.00017234,87067.0,87066.0,0.188348]
[1765884178401,0.00017234,87067.0,87066.0,0.190348]
[1765884179295,0.18737234,87067.0,87066.0,0.189348]
[1765884179591,0.18737234,87067.0,87066.0,0.190348]
[1765884181002,0.18737234,87067.0,87066.0,0.17886]
[1765884185409,0.18737234,87067.0,87066.0,0.17786]
[1765884185801,0.18737234,87067.0,87066.0,0.17886]
[1765884185996,0.18737234,87067.0,87066.0,0.17786]
[1765884186209,0.19886024,87067.0,87066.0,0.17886]
[1765884186506,0.19886024,87067.0,87066.0,0.17786]
[1765884186696,0.19886024,87067.0,87066.0,0.17886]
[1765884187604,0.19886024,87067.0,87066.0,0.17786]
[1765884187812,0.18737234,87067.0,87066.0,0.17886]
[1765884188509,0.18737234,87067.0,87066.0,0.17786]
[1765884188704,0.18737234,87067.0,87066.0,0.17886]
[1765884191004,0.19886024,87067.0,87066.0,0.17886]
[1765884191715,0.18737234,87067.0,87066.0,0.17886]
[1765884191920,0.54293,87077.0,87076.0,0.24753]
[1765884192112,0.58158559,87077.0,87076.0,0.2590167]
[1765884193301,0.22078559,87077.0,87076.0,0.2590167]
[1765884194816,0.22078559,87077.0,87076.0,0.2600167]
[1765884195217,0.22078559,87077.0,87076.0,0.2610167]
[1765884195519,0.22078559,87077.0,87076.0,0.2600167]
[1765884195717,0.22078559,87077.0,87076.0,0.2610167]
[1765884199618,0.22078559,87077.0,87076.0,0.002]
[1765884199922,0.58158559,87077.0,87076.0,0.002]
[1765884200720,0.58158559,87077.0,87076.0,0.001]
[1765884201121,0.1936176,87069.0,87068.0,0.2011377]
[1765884202113,0.1936176,87069.0,87068.0,0.24753]
[1765884202320,0.1936176,87069.0,87068.0,0.18965]
[1765884202526,0.1936181,87065.0,87064.0,0.60833]
[1765884203416,0.1936189,87059.0,87058.0,0.18982234]
[1765884204112,0.22081735,87059.0,87058.0,0.18982234]
[1765884204316,0.1936189,87059.0,87058.0,0.18982234]
[1765884205117,0.22081787,87059.0,87058.0,0.18982234]
[1765884205317,0.1936189,87059.0,87058.0,0.18982234]
[1765884207525,0.18213,87059.0,87058.0,0.18982234]
[1765884207824,0.18230234,87067.0,87066.0,0.201138]
[1765884208024,0.20949425,87067.0,87066.0,0.201138]
[1765884209130,0.11504425,87067.0,87066.0,0.201138]
[1765884209321,0.02752186,87067.0,87066.0,0.201138]
[1765884209822,0.11520186,87067.0,87066.0,0.201138]
[1765884210128,0.08885234,87067.0,87066.0,0.201138]
[1765884210322,0.08885234,87067.0,87066.0,0.202138]
[1765884210533,0.08785234,87067.0,87066.0,0.204138]
[1765884210833,0.20965339,87067.0,87066.0,0.204138]
[1765884211022,0.20965339,87067.0,87066.0,0.203138]
[1765884211224,0.20965339,87067.0,87066.0,0.205138]
[1765884211423,0.20965382,87067.0,87066.0,0.205138]
[1765884211921,0.20965382,87067.0,87066.0,0.204138]
[1765884212924,0.20965382,87067.0,87066.0,0.202138]
[1765884213219,0.20965382,87067.0,87066.0,0.203138]
[1765884213422,0.20965382,87067.0,87066.0,0.19165]
[1765884214040,0.20965382,87067.0,87066.0,0.203138]
[1765884214338,0.20965303,87067.0,87066.0,0.203138]
[1765884214636,0.20965303,87067.0,87066.0,0.202138]
[1765884215036,0.18230234,87067.0,87066.0,0.202138]
[1765884216146,0.08785234,87067.0,87066.0,0.202138]
[1765884216442,0.00017234,87067.0,87066.0,0.202138]
[1765884216835,0.1871966,87077.0,87076.0,0.1934967]
[1765884217031,0.21454447,87077.0,87076.0,0.1934967]
[1765884217937,0.21454447,87077.0,87076.0,0.1944967]
[1765884218135,0.21454447,87077.0,87076.0,0.1954967]
[1765884218935,0.20305787,87077.0,87076.0,0.1954967]
[1765884219957,0.20305787,87077.0,87076.0,0.18401]
[1765884221236,0.20305787,87077.0,87076.0,0.18301]
[1765884222646,0.20305787,87077.0,87076.0,0.18201]
[1765884223037,0.17571,87077.0,87076.0,0.18201]
[1765884223440,0.17571,87077.0,87076.0,0.18401]
[1765884223739,0.08828,87077.0,87076.0,0.18401]
[1765884224651,0.1871959,87083.0,87082.0,0.18201]
[1765884224835,0.21453222,87083.0,87082.0,0.18201]
[1765884225543,0.21453222,87083.0,87082.0,0.1934959]
[1765884226346,0.21452927,87083.0,87082.0,0.18201]
[1765884227146,0.187197,87074.0,87060.0,0.0114887]
[1765884227350,0.187197,87074.0,87062.0,0.5542985]
[1765884227351,0.1871984,87063.0,87062.0,0.5542985]
[1765884227551,0.17571,87063.0,87062.0,0.5542985]
[1765884228752,0.17571,87063.0,87062.0,0.6484785]
[1765884229551,0.17571,87063.0,87062.0,0.6494785]
[1765884230342,0.17571,87063.0,87062.0,0.6504785]
[1765884231443,0.1871984,87063.0,87062.0,0.6504785]
[1765884231746,0.21453532,87063.0,87062.0,0.6494785]
[1765884232148,0.21453532,87063.0,87062.0,0.6504785]
[1765884232346,0.21453532,87063.0,87062.0,0.6494785]
[1765884232552,0.21453532,87063.0,87062.0,0.6504785]
[1765884232752,0.21453532,87063.0,87062.0,0.45598]
[1765884232953,0.3608,87070.0,87069.0,0.18201]
[1765884233144,0.00017114,87085.0,87069.0,0.18201]
[1765884233145,0.00017114,87085.0,87084.0,0.2474756]
[1765884233341,0.00017114,87085.0,87084.0,0.9690756]
[1765884233950,0.00229628,87098.0,87097.0,0.1934939]
[1765884234156,0.00229628,87098.0,87097.0,0.5542939]
[1765884235743,0.00529628,87098.0,87097.0,0.5542939]
[1765884236255,0.00729628,87098.0,87097.0,0.5542939]
[1765884239857,0.18300628,87098.0,87097.0,0.5542939]
[1765884242353,0.09557628,87098.0,87097.0,0.5542939]
[1765884242556,0.00729628,87098.0,87097.0,0.5542939]
[1765884243066,0.09557628,87098.0,87097.0,0.5542939]
[1765884245363,0.20208628,87098.0,87097.0,0.5542939]
[1765884245765,0.20208628,87098.0,87097.0,0.6484339]
[1765884245956,0.00729628,87098.0,87097.0,0.6484339]
[1765884247354,0.21393,87118.0,87117.0,0.2258913]
[1765884247666,0.21393,87118.0,87117.0,0.5866913]
[1765884248260,0.21393,87118.0,87117.0,0.59828827]
[1765884248568,0.21893,87118.0,87117.0,0.59828827]
[1765884248953,0.22393,87118.0,87117.0,0.59928827]
[1765884250766,0.21893,87118.0,87117.0,0.59828827]
[1765884250970,0.21393,87118.0,87117.0,0.59828827]
[1765884251776,0.3872106,87122.0,87121.0,0.2258908]
[1765884253768,0.21393,87118.0,87117.0,0.49305817]
[1765884253969,0.21393,87118.0,87117.0,0.60128817]
[1765884254165,0.2254112,87118.0,87117.0,0.60028817]
[1765884254353,0.2254112,87118.0,87117.0,0.59828817]
[1765884255063,0.2254112,87118.0,87117.0,0.60128817]
[1765884256469,0.2254112,87118.0,87117.0,0.60028817]
[1765884256666,0.2254112,87118.0,87117.0,0.3628]
[1765884257172,0.2254112,87118.0,87117.0,0.48035653]
[1765884257357,0.2254112,87118.0,87117.0,0.58858653]
[1765884257763,0.2254112,87118.0,87117.0,0.58758653]
[1765884257965,0.2254112,87118.0,87117.0,0.58658653]
[1765884258271,0.21393,87118.0,87117.0,0.58658653]
[1765884258774,0.37573,87122.0,87121.0,0.2258908]
[1765884259363,0.1618,87122.0,87121.0,0.2258908]
[1765884260264,0.21393,87133.0,87132.0,0.06447]
[1765884260468,0.10742,87133.0,87132.0,0.2903593]
[1765884260666,1.43592,87137.0,87136.0,0.2258888]
[1765884260970,0.21622522,87138.0,87137.0,0.21441]
[1765884261170,0.13663247,87138.0,87137.0,0.21441]
[1765884261359,0.24315731,87138.0,87137.0,0.21441]
[1765884263271,0.24415731,87138.0,87137.0,0.21441]
[1765884263779,0.24515731,87138.0,87137.0,0.21441]
[1765884264170,0.2254087,87137.0,87136.0,0.3608]
[1765884264377,0.25234079,87137.0,87136.0,0.3608]
[1765884266776,0.25334079,87137.0,87136.0,0.3608]
[1765884267173,0.02793209,87137.0,87136.0,0.57521]
[1765884267373,0.00229522,87138.0,87137.0,0.2258887]
[1765884268875,0.10971522,87138.0,87137.0,0.2258887]
[1765884269073,0.21622522,87138.0,87137.0,0.2258887]
[1765884269275,0.21622522,87138.0,87137.0,0.2268887]
[1765884269677,0.21622522,87138.0,87137.0,0.3209887]
[1765884271184,0.21622522,87138.0,87137.0,0.20128]
[1765884271385,0.21622522,87138.0,87137.0,0.0951]
[1765884271573,0.21622522,87138.0,87137.0,0.20128]
[1765884271770,0.24319905,87138.0,87137.0,0.20128]
[1765884271972,0.21622522,87138.0,87137.0,0.20128]
[1765884272383,0.24320088,87138.0,87137.0,0.20028]
[1765884273186,0.24320088,87138.0,87137.0,0.30851]
[1765884275096,0.25467938,87138.0,87137.0,0.30851]
[1765884275799,0.24320088,87138.0,87137.0,0.30851]
[1765884276305,0.24320088,87138.0,87137.0,0.20028]
[1765884277201,0.24320088,87138.0,87137.0,0.29741]
[1765884278000,0.27038854,87160.0,87159.0,0.2004]
[1765884278300,0.23541205,87160.0,87159.0,0.2004]
[1765884278493,0.22393645,87160.0,87159.0,0.2004]
[1765884279503,0.22893645,87160.0,87159.0,0.2004]
[1765884280000,0.13249645,87160.0,87159.0,0.2004]
[1765884280202,0.22893645,87160.0,87159.0,0.2004]
[1765884281503,0.03199645,87160.0,87159.0,0.2004]
[1765884281802,0.005,87160.0,87159.0,0.2004]
[1765884281991,0.20194,87160.0,87159.0,0.2004]
[1765884282899,0.2134156,87160.0,87159.0,0.2004]
[1765884283097,0.20194,87160.0,87159.0,0.2004]
[1765884284406,0.20194,87160.0,87159.0,0.10327]
[1765884284592,0.22888854,87160.0,87159.0,0.2004]
[1765884286795,0.2084158,87159.0,87158.0,0.46407]
[1765884287101,0.23536434,87159.0,87158.0,0.46407]
[1765884287696,0.23536434,87159.0,87158.0,0.5612]
[1765884288099,0.23736434,87159.0,87158.0,0.5612]
[1765884288608,0.23936434,87159.0,87158.0,0.5612]
[1765884288798,0.23936434,87159.0,87158.0,0.3608]
[1765884289997,0.2084167,87152.0,87151.0,0.00017213]
[1765884290204,0.23536524,87152.0,87151.0,0.00017213]
[1765884291608,0.23636524,87152.0,87151.0,0.00017213]
[1765884291809,0.23836524,87152.0,87151.0,0.00017213]
[1765884293299,0.208418,87142.0,87141.0,0.3608]
[1765884293499,0.23536654,87142.0,87141.0,0.3608]
[1765884293913,0.23536654,87142.0,87141.0,0.46407]
[1765884294205,0.23536654,87142.0,87141.0,0.5612]
[1765884295113,0.22388854,87142.0,87141.0,0.5612]
[1765884296807,0.19694,87142.0,87141.0,0.5612]
[1765884297812,0.2239319,87142.0,87141.0,0.5612]
[1765884298413,0.2239318,87142.0,87141.0,0.5612]
[1765884299397,0.2239318,87142.0,87141.0,0.3608]
[1765884300903,0.2249318,87142.0,87141.0,0.3608]
[1765884301103,0.2259318,87142.0,87141.0,0.3608]
[1765884301609,0.2259318,87142.0,87141.0,0.5612]
[1765884302609,0.2249318,87142.0,87141.0,0.5612]
[1765884302815,0.2259318,87142.0,87141.0,0.3608]
[1765884303118,0.2259318,87142.0,87141.0,0.46407]
[1765884303615,0.2374098,87142.0,87141.0,0.5612]
[1765884304114,0.2374098,87142.0,87141.0,0.3608]
[1765884304312,0.2098185,87138.0,87137.0,0.0941]
[1765884304516,0.2662553,87138.0,87137.0,0.0941]
[1765884305308,0.2662553,87138.0,87133.0,0.00017213]
[1765884305309,0.2098191,87134.0,87133.0,0.00017213]
[1765884305510,0.2098214,87116.0,87115.0,0.55127803]
[1765884305815,0.23678099,87116.0,87115.0,0.36091803]
[1765884306207,0.23678099,87116.0,87115.0,0.45233803]
[1765884306412,0.23678099,87116.0,87115.0,0.55127803]
[1765884307314,0.2108214,87116.0,87115.0,0.55127803]
[1765884307818,0.2098214,87116.0,87115.0,0.55127803]
[1765884309807,0.19834,87116.0,87115.0,0.55127803]
[1765884312008,0.56213213,87124.0,87123.0,0.19036]
[1765884312221,0.56213213,87124.0,87123.0,0.55116]
[1765884312410,0.56213213,87124.0,87123.0,0.5626405]
[1765884312919,0.66163213,87124.0,87123.0,0.5626405]
[1765884313127,0.56213213,87124.0,87123.0,0.5626405]
[1765884314008,0.00017213,87124.0,87123.0,0.5636405]
[1765884314314,0.00017213,87124.0,87123.0,0.5646405]
[1765884315022,0.00017213,87124.0,87123.0,0.5666405]
[1765884317217,0.00017213,87124.0,87123.0,0.5646405]
[1765884317421,0.00017213,87124.0,87123.0,0.5666405]
[1765884317827,0.00017213,87124.0,87123.0,0.5646405]
[1765884318219,0.00017213,87124.0,87123.0,0.5666405]
[1765884318426,0.00017213,87124.0,87123.0,0.5646405]
[1765884318627,0.00017213,87124.0,87123.0,0.5666405]
[1765884319016,0.00017213,87124.0,87123.0,0.5646405]
[1765884319227,0.00017213,87124.0,87123.0,0.5666405]
[1765884320325,0.00017213,87124.0,87123.0,0.5646405]
[1765884320629,0.00017213,87124.0,87123.0,0.5666405]
[1765884321322,0.71832,87135.0,87134.0,0.201839]
[1765884321521,0.2098184,87140.0,87139.0,0.2018384]
[1765884321717,0.23676946,87140.0,87139.0,0.2018384]
[1765884323626,0.23676946,87140.0,87139.0,0.19036]
[1765884323832,0.23676946,87140.0,87139.0,0.2018384]
[1765884324622,0.23676946,87140.0,87139.0,0.19036]
[1765884328433,0.23676946,87140.0,87134.0,0.55116]
[1765884328434,0.2098189,87135.0,87134.0,0.55116]
[1765884328745,0.23678097,87135.0,87134.0,0.3608]
[1765884329723,0.23678097,87135.0,87134.0,0.45222]
[1765884330334,0.23678097,87135.0,87134.0,0.55116]
[1765884330832,0.23878097,87135.0,87134.0,0.55116]
[1765884331531,0.23778097,87135.0,87134.0,0.55116]
[1765884332129,0.23778097,87135.0,87134.0,0.3608]
[1765884333326,0.23678097,87135.0,87134.0,0.45222]
[1765884334028,0.23778097,87135.0,87134.0,0.45222]
[1765884334535,0.23778097,87135.0,87134.0,0.3608]
[1765884334731,0.29418097,87135.0,87134.0,0.3608]
[1765884334939,0.2063393,87132.0,87128.0,0.09411]
[1765884335134,0.23330137,87132.0,87128.0,0.09411]
[1765884336737,0.2063397,87129.0,87128.0,0.09411]
[1765884336941,0.95134177,87129.0,87128.0,0.09411]
[1765884337241,0.95134177,87129.0,87121.0,0.3608]
[1765884337242,0.2063406,87122.0,87121.0,0.3608]
[1765884337432,0.23330267,87122.0,87121.0,0.3608]
[1765884337737,0.2063414,87116.0,87115.0,0.36091803]
[1765884338035,0.23330347,87116.0,87115.0,0.36091803]
[1765884339636,0.23330347,87116.0,87115.0,0.55293803]
[1765884340337,0.22182207,87116.0,87115.0,0.55293803]
[1765884340736,0.79242207,87116.0,87115.0,0.55293803]
[1765884341445,0.93990207,87116.0,87115.0,0.55293803]
[1765884343939,0.93990207,87116.0,87115.0,0.55393803]
[1765884344341,0.93990207,87116.0,87115.0,0.55293803]
[1765884344539,0.93990207,87116.0,87115.0,0.55393803]
[1765884345145,0.91294,87116.0,87115.0,0.55393803]
[1765884345340,0.91294,87116.0,87115.0,0.55493803]
[1765884345849,0.91294,87116.0,87115.0,0.55393803]
[1765884346045,0.91294,87116.0,87115.0,0.55493803]
[1765884346443,0.91294,87116.0,87115.0,0.55393803]
[1765884346949,0.91294,87116.0,87115.0,0.55493803]
[1765884347548,0.91294,87116.0,87115.0,0.55393803]
[1765884347749,0.91294,87116.0,87115.0,0.55493803]
[1765884348448,0.71808,87116.0,87115.0,0.55493803]
[1765884348753,0.1855673,87125.0,87123.0,0.19202]
[1765884348754,0.2063405,87124.0,87123.0,0.19202]
[1765884348948,0.8623798,87124.0,87123.0,0.19202]
[1765884352155,0.8623798,87124.0,87123.0,0.2035005]
[1765884352838,0.8623798,87124.0,87123.0,0.19202]
[1765884354245,0.19486,87123.0,87122.0,0.3608]
[1765884354448,0.2218193,87123.0,87122.0,0.4562]
[1765884354856,0.2218193,87123.0,87122.0,0.55282]
[1765884355056,0.2218193,87123.0,87122.0,0.5643006]
[1765884355858,0.2218193,87123.0,87122.0,0.55282]
[1765884357259,0.19486,87116.0,87115.0,0.00011803]
[1765884357461,0.2333007,87116.0,87115.0,0.00011803]
[1765884358260,0.2333007,87116.0,87115.0,0.09551803]
[1765884358863,0.2333007,87116.0,87115.0,0.19213803]
[1765884359749,0.2333007,87116.0,87115.0,0.00011803]
[1765884360660,0.9514207,87116.0,87115.0,0.00011803]
[1765884360959,1.3122207,87116.0,87115.0,0.00011803]
[1765884363262,0.2063434,87101.0,87100.0,0.25169]
[1765884363463,0.9514227,87101.0,87100.0,0.25169]
[1765884364165,0.95154073,87101.0,87100.0,0.19202]
[1765884364368,0.95154073,87101.0,87100.0,0.0954]
[1765884364664,0.95154073,87101.0,87100.0,0.0984]
[1765884365159,0.95154073,87101.0,87100.0,0.003]
[1765884365963,0.95154073,87101.0,87100.0,0.0979]
[1765884366355,0.95154073,87101.0,87100.0,0.003]
[1765884367068,0.95154073,87101.0,87100.0,0.0979]
[1765884367258,0.95154073,87101.0,87100.0,0.24601]
[1765884370256,0.95154073,87101.0,87100.0,0.003]
[1765884371260,1.31234073,87101.0,87100.0,0.0008574]
[1765884372367,0.19376,87099.0,87098.0,0.09643628]
[1765884372555,0.2207193,87099.0,87098.0,0.09643628]
[1765884372756,0.232203,87099.0,87098.0,0.09643628]
[1765884373458,0.232203,87099.0,87098.0,0.09843628]
[1765884374067,0.232203,87099.0,87098.0,0.10043628]
[1765884374366,0.233203,87099.0,87098.0,0.09843628]
[1765884374667,0.233203,87099.0,87098.0,0.09643628]
[1765884374869,0.235203,87099.0,87098.0,0.09643628]
[1765884375870,0.234203,87099.0,87098.0,0.09643628]
[1765884376067,0.236203,87099.0,87098.0,0.09643628]
[1765884376656,0.234203,87099.0,87098.0,0.09643628]
[1765884376861,0.233203,87099.0,87098.0,0.09643628]
[1765884377062,0.953443,87099.0,87098.0,0.09643628]
[1765884377969,0.951443,87099.0,87098.0,0.09643628]
[1765884378276,0.953443,87099.0,87098.0,0.09643628]
[1765884378775,0.953443,87099.0,87092.0,0.00017213]
[1765884378776,0.2052445,87093.0,87092.0,0.00017213]
[1765884378977,0.2052464,87078.0,87077.0,0.4557]
[1765884379169,0.95060373,87078.0,87077.0,0.4557]
[1765884379370,0.95060373,87078.0,87077.0,0.54583]
[1765884380378,0.95060373,87078.0,87077.0,0.54683]
[1765884380571,0.95060373,87078.0,87077.0,0.54783]
[1765884381178,0.84419733,87078.0,87077.0,0.5593166]
[1765884381480,0.93911733,87078.0,87077.0,0.5593166]
[1765884381778,0.93911733,87078.0,87077.0,0.5583166]
[1765884381967,0.93911733,87078.0,87077.0,0.5593166]
[1765884384771,0.84419733,87078.0,87077.0,0.5593166]
[1765884385264,0.93911733,87078.0,87077.0,0.5593166]
[1765884386175,0.93919733,87078.0,87077.0,0.5593166]
[1765884389273,0.95068373,87078.0,87077.0,0.5593166]
[1765884389674,0.93919733,87078.0,87077.0,0.5593166]
[1765884392278,0.95068373,87078.0,87077.0,0.5593166]
[1765884393287,0.95068373,87078.0,87077.0,0.54783]
[1765884393785,0.95068373,87078.0,87077.0,0.002]
[1765884394982,0.95068373,87078.0,87077.0,0.09523]
[1765884395790,0.95068373,87078.0,87077.0,0.002]
[1765884399795,0.23275,87070.0,87069.0,0.09434223]
[1765884399999,0.2597093,87070.0,87069.0,0.09434223]
[1765884400904,0.2170493,87070.0,87069.0,0.09434223]
[1765884401198,0.2170493,87070.0,87069.0,0.19157223]
[1765884402193,0.2581493,87070.0,87069.0,0.09834223]
[1765884403497,0.2601493,87070.0,87069.0,0.09634223]
[1765884404000,0.2601493,87070.0,87069.0,0.09434223]
[1765884404196,0.2611493,87070.0,87069.0,0.09434223]
[1765884404398,0.2631493,87070.0,87069.0,0.09434223]
[1765884405807,0.2621493,87070.0,87069.0,0.09434223]
[1765884405991,0.2601493,87070.0,87069.0,0.09434223]
[1765884406298,0.32308149,87070.0,87069.0,0.09434223]
[1765884406807,0.32208149,87070.0,87069.0,0.09434223]
[1765884407097,0.32408149,87070.0,87069.0,0.09434223]
[1765884407303,0.32208149,87070.0,87069.0,0.09434223]
[1765884407502,0.32508149,87070.0,87069.0,0.09434223]
[1765884407806,1.04356149,87070.0,87069.0,0.09434223]
[1765884408503,1.04356149,87070.0,87069.0,0.00017223]
[1765884409995,1.04056149,87070.0,87069.0,0.00017223]
[1765884410201,1.04156149,87070.0,87069.0,0.00017223]
[1765884410404,0.9816293,87070.0,87069.0,0.00017223]
[1765884410608,0.9786293,87070.0,87069.0,0.00017223]
[1765884410807,1.04356149,87070.0,87069.0,0.00017223]
[1765884411008,1.04156149,87070.0,87069.0,0.00017223]
[1765884411206,1.04356149,87070.0,87069.0,0.00017223]
[1765884411407,0.9816293,87070.0,87069.0,0.00017223]
[1765884411711,1.04356149,87070.0,87069.0,0.00017223]
[1765884412104,1.04056149,87070.0,87069.0,0.00017223]
[1765884412411,0.9816293,87070.0,87069.0,0.00017223]
[1765884412808,0.19009,87059.0,87058.0,0.00229733]
[1765884413114,0.9470182,87059.0,87058.0,0.00229733]
[1765884414911,0.94713062,87059.0,87058.0,0.00229733]
[1765884415213,0.94813062,87059.0,87058.0,0.00229733]
[1765884416308,0.94913062,87059.0,87058.0,0.00229733]
[1765884418009,0.20882,87052.0,87051.0,0.3608]
[1765884418215,0.2357793,87052.0,87051.0,0.3608]
[1765884418413,0.2472692,87052.0,87051.0,0.3608]
[1765884418916,0.2285392,87052.0,87051.0,0.3608]
[1765884420612,0.19009,87051.0,87050.0,0.00017223]
[1765884420808,0.9356093,87051.0,87050.0,0.00017223]
[1765884421011,0.2015813,87041.0,87040.0,0.23958223]
[1765884421216,0.94723956,87041.0,87040.0,0.23958223]
[1765884421410,0.02709826,87041.0,87040.0,0.23958223]
[1765884421717,0.5623789,87059.0,87058.0,0.18148]
[1765884421912,1.1292589,87059.0,87058.0,0.18148]
[1765884422506,1.12935899,87059.0,87058.0,0.18148]
[1765884423212,1.13035899,87059.0,87058.0,0.18148]
[1765884423402,1.13135899,87059.0,87058.0,0.18148]
[1765884425522,0.19598,87051.0,87050.0,0.17985594]
[1765884425812,0.90309,87051.0,87050.0,0.23559594]
[1765884426609,0.91458,87051.0,87050.0,0.23559594]
[1765884426814,0.91458,87051.0,87050.0,0.17985594]
[1765884428616,0.91458,87051.0,87050.0,0.23559594]
[1765884428617,0.7186,87051.0,87050.0,0.23559594]
[1765884428924,0.00010009,87059.0,87058.0,0.1912291]
[1765884429109,0.55366009,87059.0,87058.0,0.1912291]
[1765884429804,0.00010009,87059.0,87058.0,0.1912291]
[1765884430222,0.00010009,87059.0,87058.0,0.1922291]
[1765884431120,0.19112,87064.0,87063.0,0.1912284]
[1765884431527,0.00017233,87067.0,87066.0,0.246968]
[1765884432616,0.245,87070.0,87069.0,0.1912276]
[1765884432812,0.245,87070.0,87069.0,0.5520276]
[1765884433215,0.011487,87074.0,87073.0,0.1912271]
[1765884434506,0.71856,87079.0,87078.0,0.23484]
[1765884434722,0.74557834,87079.0,87078.0,0.23484]
[1765884434922,0.84171834,87079.0,87078.0,0.23484]
[1765884435725,0.93006834,87079.0,87078.0,0.23484]
[1765884436224,0.94155464,87079.0,87078.0,0.23484]
[1765884436820,0.94155464,87079.0,87078.0,0.17974]
[1765884437620,0.74557834,87079.0,87078.0,0.17974]
[1765884437825,0.74557834,87079.0,87078.0,0.54054]
[1765884438131,0.00017233,87082.0,87081.0,0.17974]
[1765884439234,0.00017233,87082.0,87081.0,0.18074]
[1765884439817,0.00017233,87082.0,87081.0,0.54154]
[1765884440621,0.00017233,87082.0,87081.0,0.54254]
[1765884441135,0.64563898,87086.0,87085.0,0.08982]
[1765884441349,0.6185663,87086.0,87085.0,0.2450155]
[1765884442435,0.00017233,87094.0,87093.0,0.1912245]
[1765884442632,0.00017233,87094.0,87093.0,0.5520245]
[1765884444721,0.00017233,87094.0,87093.0,0.5540245]
[1765884446629,0.00017233,87094.0,87093.0,0.56566083]
[1765884447729,0.00017233,87094.0,87093.0,0.56466083]
[1765884447924,0.00017233,87094.0,87093.0,0.56566083]
[1765884449139,0.18466233,87094.0,87093.0,0.55417633]
[1765884449443,0.18466233,87094.0,87093.0,0.54254]
[1765884450843,0.18466233,87094.0,87093.0,0.54154]
[1765884451045,0.18566233,87094.0,87093.0,0.54054]
[1765884453337,0.18566233,87094.0,87093.0,0.5520245]
[1765884453746,0.18466233,87094.0,87093.0,0.54054]
[1765884454044,0.18666233,87094.0,87093.0,0.54054]
[1765884454442,0.19714663,87094.0,87093.0,0.54054]
[1765884455537,0.18566233,87094.0,87093.0,0.54054]
[1765884456544,0.18466233,87094.0,87093.0,0.54054]
[1765884456843,0.18566233,87094.0,87093.0,0.54054]
[1765884457238,0.18566233,87094.0,87093.0,0.3608]
[1765884457433,0.21241427,87094.0,87093.0,0.3608]
[1765884457648,0.21241427,87094.0,87081.0,0.53851]
[1765884457649,0.17507,87082.0,87081.0,0.53851]
[1765884457839,0.7463159,87082.0,87081.0,0.53851]
[1765884458349,0.77308809,87082.0,87081.0,0.53851]
[1765884459649,0.77308809,87082.0,87081.0,0.53951]
[1765884460450,0.77408809,87082.0,87081.0,0.53851]
[1765884460755,0.77508809,87082.0,87081.0,0.53851]
[1765884461950,0.7483159,87082.0,87081.0,0.53851]
[1765884462250,0.77510681,87082.0,87081.0,0.53851]
[1765884468151,0.67748091,87082.0,87081.0,0.53851]
[1765884468553,0.76700091,87082.0,87081.0,0.53851]
[1765884468764,0.58855091,87082.0,87081.0,0.53851]
[1765884469064,0.02879091,87082.0,87081.0,0.53851]
[1765884470951,0.002,87082.0,87081.0,0.53851]
[1765884475662,0.0866,87093.0,87085.0,0.05044]
[1765884475957,0.0866,87093.0,87092.0,0.5356]
[1765884476160,0.11341694,87093.0,87092.0,0.5356]
[1765884476357,0.21357144,87093.0,87092.0,0.5470846]
[1765884476862,0.30309144,87093.0,87092.0,0.5470846]
[1765884477256,0.30609144,87093.0,87092.0,0.5470846]
[1765884477864,0.30709144,87093.0,87092.0,0.5470846]
[1765884478450,0.21757144,87093.0,87092.0,0.5470846]
[1765884478663,0.21857144,87093.0,87092.0,0.5470846]
[1765884479453,0.11841694,87093.0,87092.0,0.5470846]
[1765884479662,0.0916,87093.0,87092.0,0.5470846]
[1765884480459,0.18027,87093.0,87092.0,0.5470846]